[Event "*** Titled Tuesday Blitz"]
[Site "Chess.com"]
[Date "2021.04.06"]
[Round "3"]
[White "Misha_Bilous"]
[Black "OlifantCZ"]
[Result "0-1"]
[WhiteElo "2496"]
[BlackElo "2293"]
[TimeControl "180+1"]
[EndTime "10:28:14 PDT"]
[Termination "OlifantCZ won on time"]

1. d4 {[%clk 0:03:00.9]} 1... Nf6 {[%clk 0:02:59.5]} 2. c4 {[%clk 0:03:01.3]}
2... g6 {[%clk 0:03:00]} 3. f3 {[%clk 0:03:01.3]} 3... Bg7 {[%clk 0:02:57.9]} 4.
e4 {[%clk 0:03:01.6]} 4... O-O {[%clk 0:02:57.8]} 5. Nc3 {[%clk 0:03:02.2]} 5...
c5 {[%clk 0:02:58.2]} 6. Nge2 {[%clk 0:03:00.9]} 6... d6 {[%clk 0:02:52.4]} 7.
Be3 {[%clk 0:03:00.9]} 7... cxd4 {[%clk 0:02:52.2]} 8. Nxd4 {[%clk 0:03:01.1]}
8... Nc6 {[%clk 0:02:52.8]} 9. Be2 {[%clk 0:03:01.5]} 9... Nxd4 {[%clk
0:02:50.2]} 10. Bxd4 {[%clk 0:03:01.5]} 10... Be6 {[%clk 0:02:50.7]} 11. O-O
{[%clk 0:03:01.4]} 11... a6 {[%clk 0:02:50]} 12. Nd5 {[%clk 0:02:56.1]} 12...
Bxd5 {[%clk 0:02:48.3]} 13. exd5 {[%clk 0:02:54.5]} 13... Nd7 {[%clk 0:02:46]}
14. Bxg7 {[%clk 0:02:52.6]} 14... Kxg7 {[%clk 0:02:45.9]} 15. Qd4+ {[%clk
0:02:53]} 15... f6 {[%clk 0:02:46.2]} 16. h4 {[%clk 0:02:51.2]} 16... Qb6 {[%clk
0:02:41.9]} 17. Qxb6 {[%clk 0:02:50.7]} 17... Nxb6 {[%clk 0:02:42.1]} 18. h5
{[%clk 0:02:51.4]} 18... Rac8 {[%clk 0:02:41]} 19. b3 {[%clk 0:02:51]} 19... Nd7
{[%clk 0:02:39.6]} 20. g4 {[%clk 0:02:47.5]} 20... g5 {[%clk 0:02:34.8]} 21. f4
{[%clk 0:02:31.3]} 21... gxf4 {[%clk 0:02:34.1]} 22. Rxf4 {[%clk 0:02:31.8]}
22... h6 {[%clk 0:02:33.6]} 23. Bd3 {[%clk 0:02:26]} 23... Ne5 {[%clk
0:02:31.5]} 24. Bf5 {[%clk 0:02:26.2]} 24... Rc7 {[%clk 0:02:31.8]} 25. Kf2
{[%clk 0:02:23.5]} 25... Rb8 {[%clk 0:02:21.3]} 26. Ke3 {[%clk 0:02:19.3]} 26...
b5 {[%clk 0:02:20.8]} 27. cxb5 {[%clk 0:02:18.5]} 27... axb5 {[%clk 0:02:19.1]}
28. Kd2 {[%clk 0:02:12.6]} 28... Rc5 {[%clk 0:02:06.9]} 29. Be4 {[%clk
0:02:03.3]} 29... Rbc8 {[%clk 0:02:01.1]} 30. Rff1 {[%clk 0:02:00.2]} 30... b4
{[%clk 0:01:59]} 31. a3 {[%clk 0:01:45.1]} 31... bxa3 {[%clk 0:01:58.4]} 32.
Rxa3 {[%clk 0:01:45.4]} 32... Rc3 {[%clk 0:01:58.9]} 33. Ra7 {[%clk 0:01:37.9]}
33... Kf7 {[%clk 0:01:57.4]} 34. Bf5 {[%clk 0:01:29.3]} 34... R8c7 {[%clk
0:01:54.8]} 35. Rxc7 {[%clk 0:01:06.9]} 35... Rxc7 {[%clk 0:01:54]} 36. b4
{[%clk 0:01:05.9]} 36... Ke8 {[%clk 0:01:34]} 37. Ra1 {[%clk 0:00:56.5]} 37...
Rc4 {[%clk 0:01:32.5]} 38. Rb1 {[%clk 0:00:37.2]} 38... Kd8 {[%clk 0:01:30.3]}
39. b5 {[%clk 0:00:12.4]} 39... Kc7 {[%clk 0:01:28.3]} 40. b6+ {[%clk
0:00:06.7]} 40... Kb7 {[%clk 0:01:28]} 41. Be6 {[%clk 0:00:06.4]} 41... Nxg4
{[%clk 0:01:22.7]} 42. Bd7 {[%clk 0:00:06.2]} 42... Ne5 {[%clk 0:01:20.1]} 43.
Be8 {[%clk 0:00:06.6]} 43... Rd4+ {[%clk 0:01:15.7]} 44. Ke3 {[%clk 0:00:05.4]}
44... Rxd5 {[%clk 0:01:16]} 45. Ke4 {[%clk 0:00:03.7]} 45... Rc5 {[%clk
0:01:15.4]} 46. Kf5 {[%clk 0:00:03.3]} 46... Nc4+ {[%clk 0:01:12.7]} 47. Ke6
{[%clk 0:00:02.1]} 47... Re5+ {[%clk 0:01:12.7]} 0-1

[Event "*** Titled Tuesday Blitz"]
[Site "Chess.com"]
[Date "2021.04.06"]
[Round "3"]
[White "BrandonJacobson"]
[Black "tjychess"]
[Result "1-0"]
[WhiteElo "2887"]
[BlackElo "2625"]
[TimeControl "180+1"]
[EndTime "10:28:22 PDT"]
[Termination "BrandonJacobson won by resignation"]

1. d4 {[%clk 0:03:00.9]} 1... Nf6 {[%clk 0:02:59.4]} 2. c4 {[%clk 0:03:01.1]}
2... e6 {[%clk 0:02:59.6]} 3. Nf3 {[%clk 0:03:00.8]} 3... d5 {[%clk 0:02:57.4]}
4. g3 {[%clk 0:03:01.1]} 4... c6 {[%clk 0:02:48.7]} 5. Bg2 {[%clk 0:03:01]} 5...
dxc4 {[%clk 0:02:48.4]} 6. Ne5 {[%clk 0:03:00.7]} 6... b5 {[%clk 0:02:36.9]} 7.
a4 {[%clk 0:02:55.2]} 7... Nd5 {[%clk 0:02:25.6]} 8. O-O {[%clk 0:02:44.6]} 8...
Bb7 {[%clk 0:02:23.3]} 9. e4 {[%clk 0:02:36.8]} 9... Nf6 {[%clk 0:02:19.7]} 10.
Nc3 {[%clk 0:02:19.3]} 10... a6 {[%clk 0:02:17.4]} 11. axb5 {[%clk 0:02:17.9]}
11... axb5 {[%clk 0:02:01.1]} 12. Rxa8 {[%clk 0:02:18.8]} 12... Bxa8 {[%clk
0:02:01.8]} 13. d5 {[%clk 0:02:19.3]} 13... Be7 {[%clk 0:01:05.5]} 14. dxe6
{[%clk 0:02:15.2]} 14... fxe6 {[%clk 0:01:04.2]} 15. Qe2 {[%clk 0:02:15.9]}
15... O-O {[%clk 0:00:58.4]} 16. Rd1 {[%clk 0:02:10.7]} 16... Qc8 {[%clk
0:00:52.8]} 17. Bh3 {[%clk 0:01:51.8]} 17... Na6 {[%clk 0:00:52.2]} 18. Be3
{[%clk 0:01:07.3]} 18... Re8 {[%clk 0:00:29.5]} 19. Nd7 {[%clk 0:00:59.8]} 19...
Nc7 {[%clk 0:00:19.9]} 20. Nxf6+ {[%clk 0:00:38.4]} 20... Bxf6 {[%clk
0:00:19.9]} 21. Bc5 {[%clk 0:00:39]} 21... Na6 {[%clk 0:00:16.7]} 22. Bd6 {[%clk
0:00:33.1]} 22... Bb7 {[%clk 0:00:16.9]} 23. e5 {[%clk 0:00:33.4]} 23... Be7
{[%clk 0:00:15.8]} 24. Ne4 {[%clk 0:00:32]} 24... c5 {[%clk 0:00:11.3]} 25. Bxe7
{[%clk 0:00:24.9]} 25... Rxe7 {[%clk 0:00:12.2]} 26. Nd6 {[%clk 0:00:19.5]}
26... Qc6 {[%clk 0:00:08.5]} 27. Nxb7 {[%clk 0:00:19.8]} 27... Rxb7 {[%clk
0:00:03.8]} 28. Bg2 {[%clk 0:00:13.8]} 28... Qb6 {[%clk 0:00:03.3]} 29. Bxb7
{[%clk 0:00:14.4]} 29... Qxb7 {[%clk 0:00:04.2]} 30. Rd8+ {[%clk 0:00:14]} 30...
Kf7 {[%clk 0:00:04.7]} 31. Qh5+ {[%clk 0:00:14.9]} 1-0

[Event "*** Titled Tuesday Blitz"]
[Site "Chess.com"]
[Date "2021.04.06"]
[Round "3"]
[White "politeplayer"]
[Black "Two_Towers_Krakow"]
[Result "0-1"]
[WhiteElo "2247"]
[BlackElo "2516"]
[TimeControl "180+1"]
[EndTime "10:28:23 PDT"]
[Termination "Two_Towers_Krakow won by resignation"]

1. d4 {[%clk 0:02:12.7]} 1... Nf6 {[%clk 0:02:59]} 2. Bg5 {[%clk 0:02:11.3]}
2... Ne4 {[%clk 0:02:54.8]} 3. Bf4 {[%clk 0:02:11.1]} 3... d5 {[%clk 0:02:54.8]}
4. f3 {[%clk 0:02:11.2]} 4... Nd6 {[%clk 0:02:54.3]} 5. e4 {[%clk 0:02:09.2]}
5... dxe4 {[%clk 0:02:53.7]} 6. Nc3 {[%clk 0:02:08.1]} 6... e3 {[%clk
0:02:52.3]} 7. Bd3 {[%clk 0:02:05]} 7... Bf5 {[%clk 0:02:48.5]} 8. Bxd6 {[%clk
0:02:04.6]} 8... Bxd3 {[%clk 0:02:45.3]} 9. Bxc7 {[%clk 0:01:59.4]} 9... Qxc7
{[%clk 0:02:45.3]} 10. Qxd3 {[%clk 0:01:58.8]} 10... e6 {[%clk 0:02:44.2]} 11.
O-O-O {[%clk 0:01:51.9]} 11... Bb4 {[%clk 0:02:34]} 12. d5 {[%clk 0:01:49.2]}
12... Bxc3 {[%clk 0:02:32.9]} 13. bxc3 {[%clk 0:01:27.7]} 13... exd5 {[%clk
0:02:27.6]} 14. Qxe3+ {[%clk 0:01:26.6]} 14... Qe7 {[%clk 0:02:27.7]} 15. Qxe7+
{[%clk 0:01:19.6]} 15... Kxe7 {[%clk 0:02:28.6]} 16. Rxd5 {[%clk 0:01:17]} 16...
Nc6 {[%clk 0:02:28.6]} 17. Nh3 {[%clk 0:01:15.3]} 17... Rhd8 {[%clk 0:02:28.9]}
18. Re1+ {[%clk 0:01:11.6]} 18... Kf6 {[%clk 0:02:26.8]} 19. Nf4 {[%clk
0:01:09.9]} 19... g5 {[%clk 0:02:22.8]} 20. Nh5+ {[%clk 0:01:01.7]} 20... Kg6
{[%clk 0:02:21.5]} 21. Rxd8 {[%clk 0:01:01.4]} 21... Rxd8 {[%clk 0:02:20.6]} 22.
g4 {[%clk 0:01:01.6]} 22... Rd5 {[%clk 0:02:05.5]} 23. Re8 {[%clk 0:00:58.5]}
23... Rd8 {[%clk 0:01:53.2]} 24. Rxd8 {[%clk 0:00:58.4]} 24... Nxd8 {[%clk
0:01:54.1]} 25. Kd2 {[%clk 0:00:58.7]} 25... f5 {[%clk 0:01:48.1]} 26. Ng3
{[%clk 0:00:57.7]} 26... f4 {[%clk 0:01:44.8]} 27. Nf5 {[%clk 0:00:57.7]} 27...
Nc6 {[%clk 0:01:38.9]} 28. Kd3 {[%clk 0:00:56.3]} 28... h5 {[%clk 0:01:38.2]}
29. h3 {[%clk 0:00:51.2]} 29... Kf6 {[%clk 0:01:37.2]} 30. Nd6 {[%clk
0:00:49.6]} 30... hxg4 {[%clk 0:01:32.8]} 31. hxg4 {[%clk 0:00:46.9]} 31... b6
{[%clk 0:01:32.3]} 32. c4 {[%clk 0:00:41.9]} 32... Ke6 {[%clk 0:01:29.9]} 33.
Ne4 {[%clk 0:00:37.3]} 33... Ne5+ {[%clk 0:01:30]} 34. Ke2 {[%clk 0:00:37.5]}
34... Nf7 {[%clk 0:01:24.6]} 35. c5 {[%clk 0:00:37.6]} 35... b5 {[%clk
0:01:23.6]} 36. Nc3 {[%clk 0:00:33.3]} 36... a6 {[%clk 0:01:22.2]} 37. a4 {[%clk
0:00:32.6]} 37... b4 {[%clk 0:01:22.1]} 38. Na2 {[%clk 0:00:30]} 38... a5 {[%clk
0:01:21.1]} 39. Kd3 {[%clk 0:00:29.7]} 39... Kd5 {[%clk 0:01:21.3]} 40. Nc1
{[%clk 0:00:27.5]} 40... Ne5+ {[%clk 0:01:21.6]} 41. Ke2 {[%clk 0:00:27.5]}
41... Kxc5 {[%clk 0:01:20.8]} 42. Nb3+ {[%clk 0:00:27.4]} 42... Kc4 {[%clk
0:01:18.5]} 43. Nxa5+ {[%clk 0:00:26.9]} 43... Kc3 {[%clk 0:01:19.1]} 44. Kd1
{[%clk 0:00:22.4]} 44... Nxf3 {[%clk 0:01:13.2]} 45. Nc6 {[%clk 0:00:22.3]}
45... Nd4 {[%clk 0:01:10.3]} 46. Ne5 {[%clk 0:00:20.4]} 46... f3 {[%clk
0:01:04.9]} 47. Ke1 {[%clk 0:00:16]} 47... Nxc2+ {[%clk 0:01:02]} 48. Kf2 {[%clk
0:00:16.1]} 48... b3 {[%clk 0:01:02.6]} 49. a5 {[%clk 0:00:14.8]} 49... b2
{[%clk 0:01:02.3]} 50. a6 {[%clk 0:00:13]} 50... b1=Q {[%clk 0:01:02]} 51. a7
{[%clk 0:00:13.3]} 51... Qb6+ {[%clk 0:01:01.4]} 0-1

[Event "*** Titled Tuesday Blitz"]
[Site "Chess.com"]
[Date "2021.04.06"]
[Round "3"]
[White "DraG0s3L"]
[Black "DonPreuss"]
[Result "0-1"]
[WhiteElo "2486"]
[BlackElo "2259"]
[TimeControl "180+1"]
[EndTime "10:28:23 PDT"]
[Termination "DonPreuss won by checkmate"]

1. c4 {[%clk 0:03:00.9]} 1... Nc6 {[%clk 0:02:52.3]} 2. Nc3 {[%clk 0:03:00.7]}
2... e5 {[%clk 0:02:51.9]} 3. g3 {[%clk 0:02:58.9]} 3... Bc5 {[%clk 0:02:51.8]}
4. Bg2 {[%clk 0:02:58.8]} 4... d6 {[%clk 0:02:52]} 5. e3 {[%clk 0:02:59.4]} 5...
Nge7 {[%clk 0:02:51]} 6. Nge2 {[%clk 0:02:59.7]} 6... a6 {[%clk 0:02:50.9]} 7.
O-O {[%clk 0:02:57.1]} 7... O-O {[%clk 0:02:50.5]} 8. d4 {[%clk 0:02:42.4]} 8...
Ba7 {[%clk 0:02:48.5]} 9. d5 {[%clk 0:02:42.1]} 9... Nb8 {[%clk 0:02:48.4]} 10.
b4 {[%clk 0:02:41.9]} 10... Nd7 {[%clk 0:02:48.7]} 11. Bb2 {[%clk 0:02:30.9]}
11... f5 {[%clk 0:02:48.4]} 12. Na4 {[%clk 0:02:29.9]} 12... g5 {[%clk 0:02:45]}
13. Rc1 {[%clk 0:02:27.1]} 13... Ng6 {[%clk 0:02:45]} 14. c5 {[%clk 0:02:26.6]}
14... f4 {[%clk 0:02:45.1]} 15. exf4 {[%clk 0:02:23.7]} 15... gxf4 {[%clk
0:02:44.4]} 16. Nec3 {[%clk 0:02:23.2]} 16... Qg5 {[%clk 0:02:36.4]} 17. Ne4
{[%clk 0:02:22.3]} 17... Qh6 {[%clk 0:02:36.4]} 18. Rc2 {[%clk 0:02:10.4]} 18...
Nf6 {[%clk 0:02:33.4]} 19. cxd6 {[%clk 0:02:06]} 19... Nxe4 {[%clk 0:02:30.9]}
20. Bxe4 {[%clk 0:02:06.9]} 20... cxd6 {[%clk 0:02:30.9]} 21. Bc1 {[%clk
0:02:02.1]} 21... Bh3 {[%clk 0:02:26.2]} 22. Re1 {[%clk 0:02:01.6]} 22... Rf6
{[%clk 0:01:24.7]} 23. Qd3 {[%clk 0:01:52.4]} 23... Raf8 {[%clk 0:01:23.3]} 24.
Ree2 {[%clk 0:01:17.2]} 24... Qh5 {[%clk 0:00:46.7]} 25. Bf3 {[%clk 0:01:05.1]}
25... Bg4 {[%clk 0:00:46]} 26. Bxg4 {[%clk 0:01:04.9]} 26... Qxg4 {[%clk
0:00:46.1]} 27. Nc3 {[%clk 0:00:57.1]} 27... f3 {[%clk 0:00:24.5]} 28. Re4
{[%clk 0:00:54.3]} 28... Nf4 {[%clk 0:00:22.8]} 29. Bxf4 {[%clk 0:00:49.8]}
29... Rxf4 {[%clk 0:00:22.8]} 30. Rxf4 {[%clk 0:00:41.6]} 30... exf4 {[%clk
0:00:20.7]} 31. Ne4 {[%clk 0:00:37.7]} 31... fxg3 {[%clk 0:00:18.9]} 32. Nxg3
{[%clk 0:00:25.1]} 32... Re8 {[%clk 0:00:16.5]} 33. Rc1 {[%clk 0:00:20]} 33...
h5 {[%clk 0:00:14.8]} 34. h3 {[%clk 0:00:16.3]} 34... Qxg3+ {[%clk 0:00:14]} 35.
Kh1 {[%clk 0:00:15.6]} 35... Qg2# {[%clk 0:00:14.5]} 0-1

[Event "*** Titled Tuesday Blitz"]
[Site "Chess.com"]
[Date "2021.04.06"]
[Round "3"]
[White "InitiatingASC"]
[Black "marszach123"]
[Result "1-0"]
[WhiteElo "2427"]
[BlackElo "2149"]
[TimeControl "180+1"]
[EndTime "10:28:26 PDT"]
[Termination "InitiatingASC won by resignation"]

1. Nf3 {[%clk 0:03:00.9]} 1... Nf6 {[%clk 0:02:58.3]} 2. b3 {[%clk 0:03:01.3]}
2... g6 {[%clk 0:02:59.2]} 3. Bb2 {[%clk 0:03:01.5]} 3... Bg7 {[%clk 0:03:00.1]}
4. e3 {[%clk 0:03:00.2]} 4... O-O {[%clk 0:03:00.6]} 5. c4 {[%clk 0:03:00.7]}
5... d6 {[%clk 0:03:01.3]} 6. Be2 {[%clk 0:03:00.7]} 6... e5 {[%clk 0:03:00.9]}
7. d3 {[%clk 0:03:00.3]} 7... Nc6 {[%clk 0:02:56.1]} 8. a3 {[%clk 0:02:58.5]}
8... Nd7 {[%clk 0:02:55.3]} 9. Nbd2 {[%clk 0:02:51.1]} 9... f5 {[%clk
0:02:54.8]} 10. b4 {[%clk 0:02:50.2]} 10... e4 {[%clk 0:02:38.6]} 11. Nd4 {[%clk
0:02:47.5]} 11... Nxd4 {[%clk 0:02:37.3]} 12. Bxd4 {[%clk 0:02:46.9]} 12... exd3
{[%clk 0:02:37]} 13. Bxd3 {[%clk 0:02:43.5]} 13... Bxd4 {[%clk 0:02:36.4]} 14.
exd4 {[%clk 0:02:43.6]} 14... Re8+ {[%clk 0:02:35.4]} 15. Kf1 {[%clk 0:02:44.1]}
15... Qf6 {[%clk 0:02:29.1]} 16. Nf3 {[%clk 0:02:39.3]} 16... Nf8 {[%clk
0:02:23.9]} 17. h4 {[%clk 0:02:38.9]} 17... Be6 {[%clk 0:02:17.3]} 18. d5 {[%clk
0:02:38.2]} 18... Bf7 {[%clk 0:02:16.5]} 19. Ra2 {[%clk 0:02:30.4]} 19... Re7
{[%clk 0:02:08.1]} 20. Ng5 {[%clk 0:02:16.1]} 20... Rae8 {[%clk 0:02:03.9]} 21.
Re2 {[%clk 0:02:16.4]} 21... Rxe2 {[%clk 0:01:57.6]} 22. Bxe2 {[%clk 0:02:17.3]}
22... h6 {[%clk 0:01:54.2]} 23. Nxf7 {[%clk 0:01:59.3]} 23... Kxf7 {[%clk
0:01:52.2]} 24. Rh3 {[%clk 0:01:59.9]} 24... Re4 {[%clk 0:01:50.3]} 25. g4
{[%clk 0:01:49.3]} 25... Kg7 {[%clk 0:01:38.8]} 26. h5 {[%clk 0:01:29.7]} 26...
Rd4 {[%clk 0:01:25.4]} 27. Rd3 {[%clk 0:00:54.8]} 27... Rxd3 {[%clk 0:01:25.2]}
28. Qxd3 {[%clk 0:00:53.2]} 28... fxg4 {[%clk 0:01:23.2]} 29. Bxg4 {[%clk
0:00:50.6]} 29... gxh5 {[%clk 0:01:20.1]} 30. Bxh5 {[%clk 0:00:48.9]} 30... Ng6
{[%clk 0:01:19.4]} 31. Bxg6 {[%clk 0:00:44.1]} 31... Qxg6 {[%clk 0:01:18.5]} 32.
Qd4+ {[%clk 0:00:44.7]} 32... Kf7 {[%clk 0:01:09]} 33. Qxa7 {[%clk 0:00:32.2]}
33... Qd3+ {[%clk 0:00:58.6]} 34. Kg1 {[%clk 0:00:30.2]} 34... Qd1+ {[%clk
0:00:56.9]} 35. Kh2 {[%clk 0:00:25.9]} 35... Qh5+ {[%clk 0:00:56.5]} 36. Kg3
{[%clk 0:00:25.3]} 36... Qg5+ {[%clk 0:00:56.3]} 37. Kf3 {[%clk 0:00:25.4]}
37... Qf5+ {[%clk 0:00:54.8]} 38. Ke3 {[%clk 0:00:22.4]} 38... Qe5+ {[%clk
0:00:52.3]} 39. Kd3 {[%clk 0:00:20.7]} 39... Qf5+ {[%clk 0:00:51.7]} 40. Kc3
{[%clk 0:00:20.5]} 40... Qf3+ {[%clk 0:00:50.2]} 41. Qe3 {[%clk 0:00:20.2]}
41... Qxe3+ {[%clk 0:00:45.7]} 42. fxe3 {[%clk 0:00:21.1]} 42... h5 {[%clk
0:00:45.9]} 43. Kd3 {[%clk 0:00:21.7]} 43... h4 {[%clk 0:00:44.5]} 44. Ke4
{[%clk 0:00:21.3]} 44... h3 {[%clk 0:00:43.4]} 45. Kf3 {[%clk 0:00:22]} 45...
Kf6 {[%clk 0:00:44.3]} 46. a4 {[%clk 0:00:21.3]} 46... Ke5 {[%clk 0:00:45.2]}
47. a5 {[%clk 0:00:19.8]} 47... h2 {[%clk 0:00:40.9]} 48. Kg2 {[%clk 0:00:20]}
48... Ke4 {[%clk 0:00:41.8]} 49. b5 {[%clk 0:00:20.1]} 49... Kxe3 {[%clk
0:00:42.7]} 50. a6 {[%clk 0:00:20.4]} 1-0

[Event "*** Titled Tuesday Blitz"]
[Site "Chess.com"]
[Date "2021.04.06"]
[Round "3"]
[White "RobertoJBM"]
[Black "TengisChess"]
[Result "0-1"]
[WhiteElo "2707"]
[BlackElo "2511"]
[TimeControl "180+1"]
[EndTime "10:28:27 PDT"]
[Termination "TengisChess won by checkmate"]

1. d4 {[%clk 0:03:00.9]} 1... d5 {[%clk 0:02:58.7]} 2. Nf3 {[%clk 0:03:00.5]}
2... Nf6 {[%clk 0:02:58]} 3. e3 {[%clk 0:03:00.4]} 3... Bg4 {[%clk 0:02:55.5]}
4. c4 {[%clk 0:03:00]} 4... Bxf3 {[%clk 0:02:54.4]} 5. Qxf3 {[%clk 0:02:59.7]}
5... c6 {[%clk 0:02:55.3]} 6. Nc3 {[%clk 0:02:58.5]} 6... e6 {[%clk 0:02:55.4]}
7. Bd2 {[%clk 0:02:58]} 7... Nbd7 {[%clk 0:02:55.5]} 8. Bd3 {[%clk 0:02:57.8]}
8... Bd6 {[%clk 0:02:55.9]} 9. O-O {[%clk 0:02:54.7]} 9... O-O {[%clk
0:02:55.7]} 10. Rad1 {[%clk 0:02:52]} 10... Re8 {[%clk 0:02:55.1]} 11. Rfe1
{[%clk 0:02:50.7]} 11... a5 {[%clk 0:02:54.7]} 12. e4 {[%clk 0:02:48.5]} 12...
dxe4 {[%clk 0:02:55.6]} 13. Nxe4 {[%clk 0:02:48.5]} 13... Nxe4 {[%clk
0:02:56.5]} 14. Bxe4 {[%clk 0:02:48]} 14... Nf8 {[%clk 0:02:56.6]} 15. Bc3
{[%clk 0:02:46.9]} 15... Qc7 {[%clk 0:02:56.4]} 16. g3 {[%clk 0:02:46.5]} 16...
Bb4 {[%clk 0:02:56.3]} 17. a3 {[%clk 0:02:44.5]} 17... Bxc3 {[%clk 0:02:55.7]}
18. Qxc3 {[%clk 0:02:45.4]} 18... Rad8 {[%clk 0:02:53.7]} 19. Rd2 {[%clk
0:02:44.9]} 19... Rd7 {[%clk 0:02:53.8]} 20. Red1 {[%clk 0:02:45]} 20... Red8
{[%clk 0:02:54.7]} 21. b4 {[%clk 0:02:45]} 21... axb4 {[%clk 0:02:54.2]} 22.
axb4 {[%clk 0:02:45.9]} 22... Ng6 {[%clk 0:02:51.8]} 23. f4 {[%clk 0:02:45.2]}
23... Ne7 {[%clk 0:02:51.5]} 24. Kg2 {[%clk 0:02:44.2]} 24... g6 {[%clk
0:02:51]} 25. h4 {[%clk 0:02:37.7]} 25... h5 {[%clk 0:02:50.5]} 26. Kf3 {[%clk
0:02:26]} 26... Nc8 {[%clk 0:02:50.2]} 27. c5 {[%clk 0:02:20.4]} 27... Ne7
{[%clk 0:02:50]} 28. Qc4 {[%clk 0:02:20]} 28... Nd5 {[%clk 0:02:49.5]} 29. b5
{[%clk 0:02:19]} 29... Nf6 {[%clk 0:02:46.9]} 30. b6 {[%clk 0:02:14]} 30... Qc8
{[%clk 0:02:43.8]} 31. Bc2 {[%clk 0:01:50.6]} 31... Rd5 {[%clk 0:02:40.1]} 32.
Bb3 {[%clk 0:01:47.4]} 32... Qd7 {[%clk 0:02:39.5]} 33. Qc3 {[%clk 0:01:47.5]}
33... Kh7 {[%clk 0:02:31.9]} 34. Bc4 {[%clk 0:01:33.5]} 34... Rf5 {[%clk
0:02:30.4]} 35. Qe3 {[%clk 0:01:30.6]} 35... Ra8 {[%clk 0:02:27.4]} 36. Kg2
{[%clk 0:01:29.4]} 36... Nd5 {[%clk 0:02:21.2]} 37. Bxd5 {[%clk 0:01:24.8]}
37... Rxd5 {[%clk 0:02:14.1]} 38. Kf2 {[%clk 0:01:24.6]} 38... Ra6 {[%clk
0:02:11.3]} 39. Kf3 {[%clk 0:01:23.4]} 39... Qc8 {[%clk 0:02:11.2]} 40. Kf2
{[%clk 0:01:23.5]} 40... Qa8 {[%clk 0:02:10.6]} 41. Rd3 {[%clk 0:01:23.9]} 41...
Ra2+ {[%clk 0:02:10]} 42. R1d2 {[%clk 0:01:24.1]} 42... Ra1 {[%clk 0:02:09.1]}
43. Rd1 {[%clk 0:01:24.4]} 43... Qa2+ {[%clk 0:02:08.6]} 44. R3d2 {[%clk
0:01:24.4]} 44... Qa5 {[%clk 0:02:06.5]} 45. Rxa1 {[%clk 0:01:23.9]} 45... Qxa1
{[%clk 0:02:07.4]} 46. Kg2 {[%clk 0:01:23]} 46... Kg7 {[%clk 0:02:06]} 47. Kf2
{[%clk 0:01:22.8]} 47... Qc1 {[%clk 0:02:05]} 48. Rd3 {[%clk 0:01:21.7]} 48...
Qh1 {[%clk 0:02:04.2]} 49. Qf3 {[%clk 0:01:20.2]} 49... Qb1 {[%clk 0:02:00.4]}
50. Qe3 {[%clk 0:01:19.6]} 50... Kg8 {[%clk 0:01:59.9]} 51. Rd2 {[%clk
0:01:19.8]} 51... Qb4 {[%clk 0:01:58.2]} 52. Rd3 {[%clk 0:01:18.9]} 52... Qc4
{[%clk 0:01:57.6]} 53. Rd2 {[%clk 0:01:19.1]} 53... Rd8 {[%clk 0:01:55.4]} 54.
Qd3 {[%clk 0:01:18.1]} 54... Qd5 {[%clk 0:01:54.2]} 55. Qf3 {[%clk 0:01:17.8]}
55... Qc4 {[%clk 0:01:53.3]} 56. Qd3 {[%clk 0:01:17.7]} 56... Qa4 {[%clk
0:01:52.1]} 57. Qe3 {[%clk 0:01:13.7]} 57... Qb4 {[%clk 0:01:51]} 58. Kg2 {[%clk
0:01:12.9]} 58... Ra8 {[%clk 0:01:49.9]} 59. Kh3 {[%clk 0:01:01.9]} 59... Ra1
{[%clk 0:01:42.3]} 60. f5 {[%clk 0:00:57.2]} 60... Rh1+ {[%clk 0:01:36.4]} 61.
Kg2 {[%clk 0:00:57.2]} 61... Qb1 {[%clk 0:01:34.6]} 62. Rf2 {[%clk 0:00:53.9]}
62... Rg1+ {[%clk 0:01:29.3]} 63. Kh2 {[%clk 0:00:53.2]} 63... Rh1+ {[%clk
0:01:29.6]} 64. Kg2 {[%clk 0:00:53.5]} 64... Qg1+ {[%clk 0:01:29.1]} 65. Kf3
{[%clk 0:00:53.9]} 65... exf5 {[%clk 0:01:23.7]} 66. Qe8+ {[%clk 0:00:52.8]}
66... Kg7 {[%clk 0:01:22.9]} 67. Qe5+ {[%clk 0:00:52.9]} 67... Kh7 {[%clk
0:01:22.9]} 68. Qf6 {[%clk 0:00:51.2]} 68... Kg8 {[%clk 0:01:20.7]} 69. Qd8+
{[%clk 0:00:50.8]} 69... Kg7 {[%clk 0:01:20.9]} 70. Qd7 {[%clk 0:00:49.1]} 70...
Qd1+ {[%clk 0:01:15.9]} 71. Kg2 {[%clk 0:00:48]} 71... Rg1+ {[%clk 0:01:16]} 72.
Kh2 {[%clk 0:00:48.3]} 72... Qe1 {[%clk 0:01:16.1]} 73. Rg2 {[%clk 0:00:45.6]}
73... Rh1# {[%clk 0:01:15.8]} 0-1